[Event "FIDE WSCC 65 2022"]
[Site "Assisi"]
[Date "2022.11.24"]
[Round "9.1"]
[White "Knaak, Rainer"]
[Black "Kristiansen, Jens"]
[Result "1/2-1/2"]
[ECO "A87"]
[WhiteElo "2457"]
[BlackElo "2353"]
[Annotator "TA"]
[PlyCount "97"]
[EventDate "2022.11.14"]
[EventType "swiss"]
[EventCountry "ITA"]
[SourceTitle "playchess.com"]
[Source "ChessBase"]
[SourceQuality "1"]
[TimeControl "40/5400+30:1800+30"]

{[%evp 17,97,43,45,51,56,24,58,64,63,53,59,29,29,29,29,29,29,29,29,29,29,29,55,56,56,56,58,59,59,58,59,60,72,44,90,30,30,0,0,0,33,33,33,33,33,0,13,13,47,0,59,33,40,0,13,13,14,14,29,34,39,25,24,0,0,0,0,0,0,0,0,0,39,0,0,0,0,0,0,0,0,0]} 1. d4 {[%emt 0:00:08]} f5 {[%emt 0:00:05]} 2. g3 {[%emt 0:00:42]} Nf6 {[%emt 0:00:09]} 3. Bg2 {[%emt 0:00:07]} g6 {[%emt 0:00:06]} 4. Nf3 {[%emt 0:00:11]} Bg7 {[%emt 0:00:10]} 5. O-O {[%emt 0:00:12]} O-O {[%emt 0:00:05]} 6. b3 {[%emt 0:00:10]} d6 {[%emt 0:00:21]} 7. Bb2 {[%emt 0:00:07]} e6 {[%emt 0:00:42]} 8. c4 {[%emt 0:00:46]} Ne4 {[%emt 0:04:22]} 9. Nbd2 {[%emt 0:01:40]} Nc6 {[%emt 0:00:54]} 10. e3 {[%emt 0:06:40] A87: Dutch Defence: Leningrad System: 5 Nf3.} a5 {[%emt 0:12:40]} 11. a3 {[%emt 0:03:31] [#]} Kh8 $146 {[%emt 0:04:52]} ({Predecessor:} 11... Bd7 12. Qc2 d5 13. Ne5 Nxe5 14. dxe5 Nxd2 15. Qxd2 dxc4 16. Rfd1 Bb5 17. Qc3 Qe8 {1-0 (71) Krivonosov,O (2452)-Kovalenko,I (2653) Lithuania 2015}) 12. Ne1 {[%emt 0:06:47][%cal Bf3e1,Be1c2,Bc2d4][%mdl 32] White is slightly better.} Nxd2 {[%emt 0:09:08]} 13. Qxd2 {[%emt 0:00:05]} e5 {[%emt 0:00:12][%cal Of5f4]} 14. f4 {[%emt 0:00:27]} e4 {[%emt 0:06:26]} 15. d5 {[%emt 0:00:27] Prevents a4.} Nb8 {[%emt 0:00:39][%cal Bc6b8,Bb8d7,Bd7f6][%mdl 32]} 16. Bxg7+ {[%emt 0:01:06]} Kxg7 {[%emt 0:00:10]} 17. Nc2 {[%emt 0:00:11]} Nd7 {[%emt 0:00:54]} 18. Nd4 {[%emt 0:02:27] [#] aiming for Ne6+.} Nf6 {[%emt 0:01:12]} 19. b4 {[%emt 0:02:26]} axb4 {[%emt 0:02:43]} 20. axb4 {[%emt 0:00:07]} Bd7 {[%emt 0:00:34]} 21. Qc3 {[%emt 0:02:14]} Qe7 {[%emt 0:02:39]} 22. Rf2 {[%emt 0:15:20]} h6 {[%emt 0:05:35]} 23. Rfa2 {[%emt 0:00:20]} Rxa2 {[%emt 0:00:32]} 24. Rxa2 {[%emt 0:00:05]} Kh7 {[%emt 0:00:30]} 25. Bf1 {[%emt 0:13:07]} Qg7 {[%emt 0:02:09]} (25... g5 $14) 26. Qb3 {[%emt 0:04:23] White is more active.} (26. Ra7 $16) 26... g5 $11 {[%emt 0:04:23]} 27. Kh1 {[%emt 0:09:13]} gxf4 {[%emt 0:02:22]} 28. gxf4 {[%emt 0:02:02]} Rg8 {[%emt 0:00:30][%csl Gg8][%cal Rg7g1] [#]} 29. Rg2 {[%emt 0:00:17] Prevents Qg1+.} Qf7 {[%emt 0:00:37]} 30. Rxg8 {[%emt 0:05:36]} Qxg8 {[%emt 0:00:33]} 31. Qd1 {[%emt 0:02:11]} Qg4 {[%emt 0:06:33]} 32. Qe1 {[%emt 0:01:25]} Qh5 {[%emt 0:02:26][%cal Ob7b5]} 33. Be2 {[%emt 0:01:39]} (33. b5 $14) 33... Qe8 {[%emt 0:01:26]} ({Black should play} 33... Qh3 $1 $11 34. Bf1 Qg4) 34. Qh4 {[%emt 0:02:24]} Kg6 {[%emt 0:00:23][%cal Ob7b5]} 35. c5 {[%emt 0:09:13]} dxc5 {[%emt 0:06:23]} 36. bxc5 {[%emt 0:00:08]} Qf8 {[%emt 0:00:11]} 37. c6 {[%emt 0:00:51]} bxc6 {[%emt 0:00:09]} 38. dxc6 {[%emt 0:00:07]} Bc8 {[%emt 0:00:08]} 39. Qg3+ {[%emt 0:06:15]} (39. Bd1 {feels hotter.} Qb4 40. Qg3+ Kh7 41. Bb3) 39... Kh7 $1 {[%emt 0:00:21]} 40. h4 {[%emt 0:03:23]} Qf7 {[%emt 0:07:55]} 41. Kg1 {[%emt 0:02:43]} Qa2 {[%emt 0:02:54]} 42. h5 {[%emt 0:07:00] White wants to mate with Qg6+.} Qf7 {[%emt 0:06:08] Against Qg6+} 43. Qh4 {[%emt 0:01:02]} Qg7+ {[%emt 0:05:38]} 44. Kf2 {[%emt 0:00:13]} Qf7 {[%emt 0:01:14]} 45. Qh3 {[%emt 0:01:45]} Qa2 {[%emt 0:01:31] The position is equal.} 46. Kg1 {[%emt 0:03:40]} (46. Nxf5 $2 {perishes.} Qa5 47. Qh1 Qxf5 $19) 46... Qa1+ {[%emt 0:02:48]} 47. Kh2 {[%emt 0:01:24] Qg2 is the strong threat.} Qa2 {[%emt 0:01:54]} 48. Qg2 {[%emt 0:00:42] Threatening mate with Qg6+.} Qf7 {[%emt 0:00:26] Against Qg6+} 49. Qh3 {[%emt 0:18:01] Weighted Error Value: White=0.12 (very precise) /Black=0.10 (very precise)} 1/2-1/2

[Event "FIDE WSCC 65 2022"]
[Site "Assisi"]
[Date "2022.11.24"]
[Round "9.2"]
[White "Nunn, John D M"]
[Black "Fernandez Garcia, Jose Luis"]
[Result "1-0"]
[ECO "C90"]
[WhiteElo "2580"]
[BlackElo "2358"]
[Annotator "TA"]
[PlyCount "85"]
[EventDate "2022.11.14"]
[EventType "swiss"]
[EventCountry "ITA"]
[SourceTitle "playchess.com"]
[Source "ChessBase"]
[SourceQuality "1"]
[TimeControl "40/5400+30:1800+30"]

{[%evp 20,85,21,24,31,26,27,27,25,31,23,20,26,18,19,13,16,13,41,0,33,43,39,39,43,26,41,27,27,28,28,20,29,25,38,35,60,50,55,23,50,33,62,57,128,114,145,144,172,95,224,214,372,373,307,251,422,325,454,404,539,515,721,717,676,648,536,422]} 1. e4 {[%emt 0:00:04]} e5 {[%emt 0:00:10]} 2. Nf3 {[%emt 0:00:07]} Nc6 {[%emt 0:00:08]} 3. Bb5 {[%emt 0:00:35]} a6 {[%emt 0:00:12]} 4. Ba4 {[%emt 0:00:05]} Nf6 {[%emt 0:00:47]} 5. O-O {[%emt 0:00:13]} Be7 {[%emt 0:00:26]} 6. Re1 {[%emt 0:00:09]} b5 {[%emt 0:00:08]} 7. Bb3 {[%emt 0:00:04]} d6 {[%emt 0:00:20]} 8. c3 {[%emt 0:00:09]} Na5 {[%emt 0:00:07]} 9. Bc2 {[%emt 0:00:12]} c5 {[%emt 0:00:12]} 10. d4 {[%emt 0:05:24]} cxd4 {[%emt 0:01:08]} 11. cxd4 {[%emt 0:00:07]} Bg4 {[%emt 0:00:05] is more profitable than 11...Qc7 at the moment. C90: Closed Ruy Lopez with 7...d6: Early deviations.} 12. dxe5 {[%emt 0:06:49]} Bxf3 {[%emt 0:00:16][%mdl 64] [#] Remove Defender} 13. Qxf3 {[%emt 0:00:12]} dxe5 {[%emt 0:00:08] White has an edge.} 14. Nc3 {[%emt 0:00:19]} O-O {[%emt 0:00:24]} 15. Rd1 {[%emt 0:25:44]} Qc7 {[%emt 0:09:57]} 16. Bd3 {[%emt 0:01:49]} Rfd8 {[%emt 0:06:50] [#]} 17. Be3 $146 {[%emt 0:07:52]} ({Predecessor:} 17. Bg5 Nc6 18. Nd5 Nxd5 19. exd5 Nd4 20. Qg3 Bxg5 21. Qxg5 Rab8 22. Rac1 Qd6 23. Be4 {0-1 (50) Vroom,G (2109)-Krawczyk,W (2212) ICCF email 2018}) 17... Nc4 {[%emt 0:06:46]} 18. Bxc4 {[%emt 0:01:08]} Qxc4 {[%emt 0:00:08]} (18... Rxd1+ {simplifies} 19. Qxd1 Qxc4 20. Rc1 Kf8) 19. Bg5 {[%emt 0:04:22]} Qe6 {[%emt 0:05:39]} 20. Nd5 {[%emt 0:05:14] [#] Black must now prevent Nc7.} Rac8 {[%emt 0:06:02] Prevents Nc7.} 21. Bxf6 {[%emt 0:01:07]} Bxf6 {[%emt 0:00:12]} 22. g3 {[%emt 0:00:28]} Be7 {[%emt 0:01:06]} 23. Rac1 {[%emt 0:05:45]} Bg5 {[%emt 0:09:05]} 24. Rxc8 {[%emt 0:05:46]} Rxc8 {[%emt 0:01:49]} 25. h4 {[%emt 0:00:17]} Bd8 {[%emt 0:03:52]} 26. Kg2 {[%emt 0:04:35]} h6 {[%emt 0:03:39]} 27. b3 {[%emt 0:00:42]} (27. Qh5 {simplifies} Kh7 28. Qf5+ Qxf5 29. exf5 Kg8 30. b3) 27... Be7 {[%emt 0:11:42]} 28. Rd2 {[%emt 0:05:09]} Bf8 {[%emt 0:02:38]} 29. Qf5 {[%emt 0:04:17]} Rc6 {[%emt 0:03:34]} (29... Qxf5 {simplifies} 30. exf5 f6 31. Ne3 a5) 30. h5 {[%emt 0:02:26]} (30. Ne3 {simplifies} Qxf5 31. exf5 h5 32. Kf3) 30... a5 {[%emt 0:09:38]} 31. Ne3 {[%emt 0:03:26] White is much more active.} a4 {[%emt 0:02:17]} (31... Qxf5 $14 32. Nxf5 f6) 32. Rd5 {[%emt 0:00:27]} axb3 {[%emt 0:02:37]} 33. axb3 {[%emt 0:00:06]} ({Much weaker is} 33. Rxb5 $6 Qxf5 34. exf5 bxa2 $11) 33... Rc5 {[%emt 0:02:20]} 34. Kf3 {[%emt 0:02:41]} ({White should try} 34. Rd8 $18) 34... Qxf5+ {[%emt 0:03:53] Black cannot hold the game after this.} (34... Rxd5 $16 {is a better defense.} 35. Qxe6 (35. exd5 Qxf5+ 36. Nxf5 g6 $11) (35. Nxd5 Qe8 $14) 35... fxe6 36. exd5 exd5) 35. exf5 $18 {[%emt 0:01:25]} Rxd5 $2 {[%emt 0:03:54]} (35... Rc3 36. Rxb5 f6) 36. Nxd5 $16 {[%emt 0:00:07][%mdl 4096] Endgame KB-KN} Bc5 {[%emt 0:00:02]} 37. Nc7 {[%emt 0:03:53] Prevents g6.} b4 $2 {[%emt 0:00:03]} (37... g6 {keeps fighting.} 38. fxg6 (38. hxg6 fxg6 39. fxg6 h5 $18) 38... fxg6) 38. Na6 $18 {[%emt 0:00:07]} Bd6 {[%emt 0:00:11]} 39. Ke4 {[%emt 0:00:06]} Kf8 {[%emt 0:00:06]} 40. Kd5 {[%emt 0:00:14] Prevents g5. White is clearly winning.} Ke7 {[%emt 0:00:04]} 41. Nc5 {[%emt 0:30:21] Prevents e4.} Bb8 {[%emt 0:37:08]} 42. Ne4 {[%emt 0:03:36]} Bc7 {[%emt 0:00:00]} 43. Kc5 {[%emt 0:00:00] Weighted Error Value: White=0.13 (very precise) /Black=0.36} 1-0

[Event "FIDE WSCC 65 2022"]
[Site "Assisi"]
[Date "2022.11.24"]
[Round "9.3"]
[White "Legky, Nikolay A"]
[Black "Hebert, Jean"]
[Result "1/2-1/2"]
[ECO "D03"]
[WhiteElo "2350"]
[BlackElo "2333"]
[Annotator "TA"]
[PlyCount "83"]
[EventDate "2022.11.14"]
[EventType "swiss"]
[EventCountry "ITA"]
[SourceTitle "playchess.com"]
[Source "ChessBase"]
[SourceQuality "1"]
[TimeControl "40/5400+30:1800+30"]

{[%evp 9,83,-6,-13,-31,20,-36,21,-19,22,58,54,44,68,75,230,79,67,86,80,47,89,83,100,108,104,69,76,78,109,70,94,36,43,47,47,-12,-15,-18,-4,0,-9,-16,-21,-19,-8,-20,30,30,30,29,39,36,44,41,43,33,35,38,52,50,55,52,61,48,73,53,68,56,56,56,56,56,56,56,56,56]} 1. d4 {[%emt 0:00:04] ChessBase II} Nf6 {[%emt 0:00:57]} 2. Bg5 {[%emt 0:00:16]} d5 {[%emt 0:00:26]} 3. Nf3 {[%emt 0:00:13]} Ne4 {[%emt 0:01:05]} 4. Bh4 {[%emt 0:00:06]} c5 {[%emt 0:02:52]} 5. e3 {[%emt 0:00:09]} Qb6 {[%emt 0:01:11]} 6. Nc3 {[%emt 0:00:15] D03: 1 d4 d5 2 Nf3 Nf6 3 Bg5, including Torre Attack with early ...d5.} e6 {[%emt 0:05:51] [#]} (6... Nxc3 $15 7. bxc3 Nc6) 7. Be2 $146 {[%emt 0:14:50]} (7. Nxe4 $11 dxe4 8. Nd2) ({Predecessor:} 7. Nxe4 dxe4 8. dxc5 Bxc5 9. Nd2 Qxb2 10. Rb1 Qe5 11. Nxe4 O-O 12. Bd3 f5 13. Nxc5 Qxc5 {½-½ (21) Prie,E (2526)-Benitah,Y (2392) Cap d'Agde 2010 EXT 2012 [ChessBase II]}) 7... Nc6 {[%emt 0:03:22]} ({Don't play} 7... Qxb2 8. Nxe4 dxe4 9. Rb1 Qc3+ 10. Nd2 $14) (7... Nxc3 $1 $15 8. bxc3 c4) 8. O-O {[%emt 0:01:01] The position is equal.} (8. Nxe4 {simplifies} dxe4 9. dxc5 Bxc5 10. Nd2) 8... cxd4 {[%emt 0:06:24]} 9. Nxe4 {[%emt 0:06:26]} dxe4 {[%emt 0:00:44]} 10. Nxd4 {[%emt 0:00:04]} Bd7 {[%emt 0:04:43]} 11. Nb5 {[%emt 0:04:35]} Na5 $2 {[%emt 0:08:17]} (11... Rc8 $16 {was called for.}) 12. Qd4 $2 {[%emt 0:05:58]} Bxb5 $16 {[%emt 0:01:15]} 13. Qxb6 {[%emt 0:00:12][%mdl 64] [#] Remove Defender} axb6 {[%emt 0:00:06]} 14. Bxb5+ {[%emt 0:00:03]} Nc6 {[%emt 0:00:10]} 15. Rfd1 {[%emt 0:07:33]} Be7 {[%emt 0:02:38]} 16. Bg3 {[%emt 0:00:56]} h5 {[%emt 0:16:07]} 17. Bc7 {[%emt 0:20:52]} Bd8 {[%emt 0:02:19]} 18. Be5 {[%emt 0:00:04] A strong pair of Bishops.} f6 {[%emt 0:05:04]} 19. Bd6 {[%emt 0:01:52] White is much more active. The black rooks are badly placed.} Be7 {[%emt 0:07:10]} 20. Bc4 {[%emt 0:01:06]} (20. h3 $16) 20... Kf7 $14 {[%emt 0:10:07]} 21. Bc7 {[%emt 0:01:41]} Rhc8 {[%emt 0:07:44] [#] White must now prevent ...Na5.} 22. Bxb6 {[%emt 0:16:16]} (22. Rd7 $14) 22... Nb4 $11 {[%emt 0:01:11][%csl LRc2,LRc4]} 23. Bb3 {[%emt 0:05:35]} Rc6 {[%emt 0:02:12]} 24. Bd4 {[%emt 0:06:20]} Nxc2 {[%emt 0:00:27]} 25. Rac1 {[%emt 0:00:03]} Nxd4 {[%emt 0:01:43]} 26. exd4 {[%emt 0:00:01]} Rxc1 {[%emt 0:01:35]} 27. Rxc1 {[%emt 0:00:01][%mdl 4096] Endgame KRB-KRB} Bd6 {[%emt 0:01:01]} ({Black should try} 27... Rd8) 28. Re1 {[%emt 0:00:38]} f5 {[%emt 0:02:11]} 29. f3 $1 {[%emt 0:00:10]} Kf6 {[%emt 0:00:25]} 30. fxe4 {[%emt 0:00:08] e5+ is the strong threat.} fxe4 {[%emt 0:00:08]} 31. Rxe4 {[%emt 0:00:14]} e5 {[%emt 0:00:11]} 32. dxe5+ {[%emt 0:02:03]} Bxe5 {[%emt 0:00:05]} 33. Rb4 {[%emt 0:00:02]} Bxb2 {[%emt 0:01:40]} 34. Rxb7 {[%emt 0:01:06]} Bd4+ {[%emt 0:00:42]} 35. Kf1 {[%emt 0:00:04]} Ra7 {[%emt 0:00:11]} 36. Rb8 {[%emt 0:00:42]} Re7 {[%emt 0:01:19]} 37. a4 {[%emt 0:01:04]} Ba7 {[%emt 0:01:49] White is slightly better.} 38. Rb5 {[%emt 0:01:56]} Re5 {[%emt 0:01:09]} 39. Bd5 {[%emt 0:00:19]} g5 {[%emt 0:01:31]} 40. a5 {[%emt 0:02:27]} h4 {[%emt 0:01:05]} 41. h3 {[%emt 0:04:39]} Kf5 {[%emt 0:03:32]} 42. Bc4 {[%emt 0:03:12] Weighted Error Value: White=0.19 (very precise) /Black=0.18 (very precise)} 1/2-1/2

[Event "FIDE WSCC 65 2022"]
[Site "Assisi"]
[Date "2022.11.24"]
[Round "9.4"]
[White "Jansa, Vlastimil"]
[Black "Hutchinson, Paul A"]
[Result "1-0"]
[ECO "B19"]
[WhiteElo "2390"]
[BlackElo "2148"]
[Annotator "TA"]
[PlyCount "87"]
[EventDate "2022.11.14"]
[EventType "swiss"]
[EventCountry "ITA"]
[SourceTitle "playchess.com"]
[Source "ChessBase"]
[SourceQuality "1"]
[TimeControl "40/5400+30:1800+30"]

{[%evp 24,87,6,0,0,-24,56,7,76,97,82,39,34,21,21,25,33,36,115,114,121,103,223,220,238,210,227,198,186,186,293,293,297,297,284,204,194,203,392,387,464,457,410,395,489,399,378,343,622,618,2668,2364,1151,2193,1864,1737,1118,383,29984,29985,29985,29986,29986,29987,29985,29986]} 1. e4 {[%emt 0:00:13]} c6 {[%emt 0:00:06]} 2. d4 {[%emt 0:00:40]} d5 {[%emt 0:00:06]} 3. Nc3 {[%emt 0:00:06]} dxe4 {[%emt 0:00:07]} 4. Nxe4 {[%emt 0:00:05]} Bf5 {[%emt 0:00:06]} 5. Ng3 {[%emt 0:00:19]} Bg6 {[%emt 0:00:07]} 6. h4 {[%emt 0:00:14][%cal Bh2h4,Bh4h5][%mdl 32]} h6 {[%emt 0:00:07]} 7. Nf3 {[%emt 0:00:07]} Nd7 {[%emt 0:00:06]} 8. h5 {[%emt 0:00:14]} Bh7 {[%emt 0:00:06]} 9. Bd3 {[%emt 0:00:11]} Bxd3 {[%emt 0:00:09]} 10. Qxd3 {[%emt 0:00:05]} e6 {[%emt 0:00:10]} 11. Bd2 {[%emt 0:01:22]} Ngf6 {[%emt 0:00:14]} 12. O-O-O {[%emt 0:00:29]} Be7 {[%emt 0:00:46]} 13. Kb1 {[%emt 0:00:41]} Qb6 {[%emt 0:00:31] B19: Classical Caro-Kann: 4...Bf5 main line.} 14. c4 {[%emt 0:15:47]} Qa6 {[%emt 0:38:08]} (14... O-O $11) 15. Ne5 {[%emt 0:09:07] [#]} (15. Rhe1 $1 $14 {feels stronger.}) 15... Nxe5 $146 {[%emt 0:15:04]} (15... O-O $11) ({Predecessor:} 15... Rd8 16. Qe2 c5 17. Bc3 cxd4 18. Bxd4 Nxe5 19. Bxe5 O-O 20. f4 Rxd1+ 21. Rxd1 Rd8 {0-1 (51) Keler,F (2226)-Bergstrom,P (2306) Plovdiv 2010}) 16. dxe5 $16 {[%emt 0:00:16]} Nd7 {[%emt 0:00:22]} 17. f4 {[%emt 0:08:43][%cal Od2b4] [#] Hoping for Bb4!} O-O-O {[%emt 0:08:18][%cal Od7e5] White must now prevent ...Nxe5!} 18. Qc2 {[%emt 0:02:47]} Nc5 {[%emt 0:00:38]} 19. Be3 {[%emt 0:05:46]} Qa5 {[%emt 0:01:09]} 20. a3 {[%emt 0:11:10]} Qc7 {[%emt 0:07:35] White stays focused until the end.} (20... Qa4 $14) 21. b4 {[%emt 0:02:14]} Na6 {[%emt 0:00:30]} 22. c5 {[%emt 0:05:01] White is much more active. The black rooks are badly placed.} (22. Bxa7 b6 23. Qa4 (23. Rxd8+ $2 Rxd8 24. Ne4 Qxa7 $19) 23... Kb7 $17) 22... Rd5 {[%emt 0:00:52]} (22... f6 $16) 23. Ne4 $18 {[%emt 0:01:03]} Kb8 {[%emt 0:01:43]} 24. Nd6 {[%emt 0:01:23]} Bxd6 {[%emt 0:01:08]} 25. exd6 {[%emt 0:04:12]} Qd7 {[%emt 0:00:10]} 26. Rxd5 {[%emt 0:03:36]} cxd5 {[%emt 0:00:54]} (26... exd5 $142 27. Qd2 f6) 27. Qd3 {[%emt 0:04:00]} Ka8 {[%emt 0:00:09]} 28. b5 {[%emt 0:01:37]} Nb8 {[%emt 0:00:06]} 29. Ka2 {[%emt 0:03:32]} Rc8 {[%emt 0:01:12]} 30. Rc1 {[%emt 0:04:05] Prevents b6.} f6 $2 {[%emt 0:00:07]} (30... b6 31. a4 (31. cxb6 Rxc1 32. Bxc1 axb6 $11) 31... bxc5) 31. a4 {[%emt 0:01:18]} Qf7 {[%emt 0:00:14]} 32. Bd4 {[%emt 0:03:51]} Qe8 {[%emt 0:05:10]} 33. Qe3 {[%emt 0:01:03] Inhibits e5.} a6 {[%emt 0:00:28]} 34. Qe2 {[%emt 0:02:35]} Qd7 {[%emt 0:02:13]} 35. Qd3 {[%emt 0:01:25]} Re8 $2 {[%emt 0:00:59]} (35... b6 36. c6 (36. bxa6 $2 Qxa4+ 37. Kb2 Qb4+ 38. Ka2 bxc5 $19) 36... Qxd6) 36. c6 {[%emt 0:02:59]} bxc6 {[%emt 0:00:19]} 37. bxc6 {[%emt 0:00:09]} ({Worse is} 37. bxa6 c5 38. Bxc5 (38. Rxc5 $2 {is the wrong capture.} Qxa4+ 39. Kb1 Nxa6 $19) 38... Qxa4+ 39. Qa3 Qb5 $11) 37... Qxd6 {[%emt 0:06:53]} 38. c7 {[%emt 0:00:07]} Rc8 {[%emt 0:00:06]} 39. cxb8=Q+ {[%emt 0:00:39]} Rxb8 {[%emt 0:00:01] [#]} 40. Qc3 $2 {[%emt 0:03:08]} (40. Rc7 $3 {[%csl Gd4][%cal Rc7a7][%mdl 512]} Rb4 41. Ra7+ Kb8 42. Qa3 (42. Rxg7 Rxa4+ 43. Kb1 Qb4+ 44. Bb2 Qe1+ 45. Kc2 Qf2+ 46. Kb3 Rc4 $18)) 40... Re8 $2 {[%emt 0:02:45]} (40... Qd7 $18 41. Qa5 Qb7) 41. Qa5 {[%emt 0:33:20] White mates.} Rb8 {[%emt 0:36:45]} 42. Rc7 {[%emt 0:00:00][%csl Gd4][%cal Rc7a7]} Rb7 {[%emt 0:00:00]} 43. Rc8+ {[%emt 0:00:00]} Rb8 {[%emt 0:00:00]} 44. Bc5 {[%emt 0:00:00] Weighted Error Value: White=0.25 (precise) /Black=0.64} 1-0